bitfinex-derivatives/quotes_BTCF0:USTF0_20250823
["timestamp","ask_amount","ask_price","bid_price","bid_amount"]
[1755924483175,1.0811554,115880.0,115870.0,0.50489544]
[1755924483372,1.0811554,115880.0,115870.0,0.50484822]
[1755924483569,1.1389654,115880.0,115870.0,0.18369445]
[1755924484070,1.14737418,115880.0,115870.0,0.10632539]
[1755924484272,1.14837418,115880.0,115870.0,0.60632539]
[1755924485771,1.15037418,115880.0,115870.0,0.60632539]
[1755924486362,1.14937418,115880.0,115870.0,0.60632539]
[1755924486567,1.14837418,115880.0,115870.0,0.60632539]
[1755924486770,1.14837418,115880.0,115870.0,0.67367604]
[1755924487172,1.14837418,115880.0,115870.0,0.60632539]
[1755924487675,1.14597418,115880.0,115870.0,0.71474658]
[1755924490775,1.50677418,115880.0,115870.0,0.71420658]
[1755924491079,2.09737044,115880.0,115870.0,0.62789179]
[1755924492176,2.09817044,115880.0,115870.0,0.58715179]
[1755924492481,2.09817044,115880.0,115870.0,0.40487135]
[1755924493180,2.09817044,115880.0,115870.0,0.09654935]
[1755924493381,1.75757418,115880.0,115870.0,0.09654935]
[1755924493571,2.09737044,115880.0,115870.0,0.0222839]
[1755924493772,2.09737044,115880.0,115870.0,0.01885455]
[1755924496884,1.75677418,115880.0,115870.0,0.01885455]
[1755924497184,2.09737044,115880.0,115870.0,0.01885455]
[1755924498283,1.75677418,115880.0,115870.0,0.01885455]
[1755924498786,2.09737044,115880.0,115870.0,0.01885455]
[1755924500179,1.75677418,115880.0,115870.0,0.01885455]
[1755924500585,2.09737044,115880.0,115870.0,0.01885455]
[1755924501486,2.08427044,115880.0,115870.0,0.01885455]
[1755924502589,2.08427044,115880.0,115870.0,0.09617774]
[1755924503287,1.74367418,115880.0,115870.0,0.09617774]
[1755924503488,2.08427044,115880.0,115870.0,0.09617774]
[1755924504281,1.74367418,115880.0,115870.0,0.09617774]
[1755924504486,2.08427044,115880.0,115870.0,0.09617774]
[1755924504689,1.74367418,115880.0,115870.0,0.09617774]
[1755924504991,2.08427044,115880.0,115870.0,0.09617774]
[1755924506290,1.74367418,115880.0,115870.0,0.09617774]
[1755924506788,2.08427044,115880.0,115870.0,0.09617774]
[1755924508782,2.08427044,115880.0,115870.0,0.01885455]
[1755924509986,1.83427044,115880.0,115870.0,0.01885455]
[1755924510286,1.83427044,115880.0,115870.0,0.09620594]
[1755924514391,1.83427044,115880.0,115870.0,0.01885455]
[1755924515190,1.49367418,115880.0,115870.0,0.01885455]
[1755924515390,1.83427044,115880.0,115870.0,0.01885455]
[1755924515591,1.49367418,115880.0,115870.0,0.01885455]
[1755924515891,1.83427044,115880.0,115870.0,0.01885455]
[1755924520790,1.83427044,115880.0,115870.0,0.04348455]
[1755924520993,1.49367418,115880.0,115870.0,0.04348455]
[1755924521191,1.49968418,115880.0,115870.0,0.22649455]
[1755924521391,1.49968418,115880.0,115870.0,0.30384594]
[1755924522997,1.49968418,115880.0,115870.0,0.26675594]
[1755924523197,1.49968418,115880.0,115870.0,0.17956594]
[1755924523498,1.84028044,115880.0,115870.0,0.10221455]
[1755924523996,1.84028044,115880.0,115870.0,0.17956594]
[1755924525688,1.84028044,115880.0,115870.0,0.11760594]
[1755924525990,1.84028044,115880.0,115870.0,0.09620594]
[1755924532996,1.84028044,115880.0,115870.0,0.07735139]
[1755924533200,0.2875329,115870.0,115860.0,0.06408001]
[1755924533392,0.98892916,115870.0,115860.0,0.06408001]
[1755924533594,0.2875403,115860.0,115850.0,0.06562145]
[1755924533788,1.81873656,115860.0,115850.0,0.06562145]
[1755924534495,1.8870448,115860.0,115850.0,0.06562145]
[1755924534995,1.8870448,115860.0,115850.0,0.56562145]
[1755924535196,1.4781403,115860.0,115850.0,0.60471145]
[1755924535393,1.8870448,115860.0,115850.0,0.60471145]
[1755924535791,1.8870448,115860.0,115850.0,0.60271145]
[1755924536197,1.8893948,115860.0,115850.0,0.60271145]
[1755924536398,1.82123807,115860.0,115850.0,0.60271145]
[1755924536602,1.82123807,115860.0,115850.0,0.51959145]
[1755924537198,1.83878777,115860.0,115850.0,0.51959145]
[1755924537398,1.83878777,115860.0,115850.0,0.01959145]
[1755924540303,2.08878777,115860.0,115850.0,0.01959145]
[1755924541605,0.2858552,115840.0,115830.0,0.22568035]
[1755924541805,2.19340718,115840.0,115830.0,0.12188008]
[1755924542000,2.19340718,115840.0,115830.0,0.01349973]
[1755924542200,2.19340718,115840.0,115830.0,0.09090573]
[1755924542397,2.19340718,115840.0,115830.0,0.01349973]
[1755924543903,2.19340718,115840.0,115830.0,0.01649973]
[1755924546711,1.85265941,115840.0,115830.0,0.01649973]
[1755924546911,2.19340718,115840.0,115830.0,0.01649973]
[1755924548805,0.115582,115830.0,115820.0,0.13971751]
[1755924549011,0.97840977,115830.0,115820.0,0.13971751]
[1755924549310,0.1245894,115820.0,115810.0,0.202046]
[1755924549516,1.81541717,115820.0,115810.0,0.234706]
[1755924549708,1.81541717,115820.0,115810.0,0.1573]
[1755924549905,1.81541717,115820.0,115810.0,0.6573]
[1755924550101,1.4656694,115820.0,115810.0,0.9073]
[1755924550412,1.80441717,115820.0,115810.0,0.9073]
[1755924550713,1.80441717,115820.0,115810.0,0.96345]
[1755924551013,1.80441717,115820.0,115810.0,0.96545]
[1755924552010,1.80441717,115820.0,115810.0,0.8733]
[1755924552213,1.80441717,115820.0,115810.0,0.55481]
[1755924552610,1.80441717,115820.0,115810.0,0.05481]
[1755924552811,1.80441717,115820.0,115810.0,0.09481]
[1755924553513,1.4636694,115820.0,115810.0,0.21945]
[1755924553721,1.80441717,115820.0,115810.0,0.21945]
[1755924558017,0.6079194,115820.0,115810.0,0.21945]
[1755924558222,1.3776294,115820.0,115810.0,0.89654237]
[1755924558424,1.3776294,115820.0,115810.0,0.5557946]
[1755924559516,1.3776294,115820.0,115810.0,1.1332006]
[1755924561027,1.3776294,115820.0,115810.0,1.14670157]
[1755924561826,1.4053794,115820.0,115810.0,1.14670157]
[1755924562325,1.3776294,115820.0,115810.0,1.14670157]
[1755924562529,0.9023394,115820.0,115810.0,1.49643034]
[1755924562724,0.9023394,115820.0,115810.0,1.1421816]
[1755924562925,0.9023394,115820.0,115810.0,1.1332006]
[1755924563125,0.9023394,115820.0,115810.0,1.0557946]
[1755924563320,0.9574294,115820.0,115810.0,1.0557946]
[1755924563629,1.0421194,115820.0,115810.0,1.0557946]
[1755924564229,1.4029194,115820.0,115810.0,1.0557946]
[1755924564426,1.0421194,115820.0,115810.0,1.0557946]
[1755924564631,1.0421194,115820.0,115810.0,1.16417495]
[1755924565430,1.0688994,115820.0,115810.0,1.16417495]
[1755924565732,1.4616594,115820.0,115810.0,1.13313734]
[1755924567025,1.4639094,115820.0,115810.0,1.13313734]
[1755924567627,1.4639094,115820.0,115810.0,0.88313734]
[1755924567824,1.4639094,115820.0,115810.0,0.88138734]
[1755924568428,1.4639094,115820.0,115810.0,0.89488819]
[1755924569925,1.80465717,115820.0,115810.0,0.89488819]
[1755924570533,1.80465717,115820.0,115810.0,0.56831123]
[1755924570936,1.4639094,115820.0,115810.0,0.68995123]
[1755924571136,1.4639094,115820.0,115810.0,0.72820123]
[1755924571936,1.4639094,115820.0,115810.0,0.80554397]
[1755924572734,1.4639094,115820.0,115810.0,0.72820123]
[1755924572935,1.4639094,115820.0,115810.0,0.56831123]
[1755924573834,1.4639094,115820.0,115810.0,0.64565397]
[1755924574439,1.4639094,115820.0,115810.0,0.71662397]
[1755924574639,1.4639094,115820.0,115810.0,0.64565397]
[1755924575338,1.80465717,115820.0,115810.0,0.64565397]
[1755924575634,1.80465717,115820.0,115810.0,0.68390397]
[1755924576240,1.4639094,115820.0,115810.0,0.68390397]
[1755924576426,1.80465717,115820.0,115810.0,0.68390397]
[1755924576630,1.80465717,115820.0,115810.0,0.71662397]
[1755924576832,1.80465717,115820.0,115810.0,0.71662418]
[1755924577841,1.80465717,115820.0,115810.0,0.68390418]
[1755924578245,1.80465717,115820.0,115810.0,0.64565418]
[1755924578431,1.80465717,115820.0,115810.0,0.68390418]
[1755924578636,1.80465717,115820.0,115810.0,0.71662418]
[1755924580743,1.80465717,115820.0,115810.0,0.64565418]
[1755924581142,1.80465717,115820.0,115810.0,0.59684418]
[1755924581942,1.80465717,115820.0,115810.0,0.62344418]
[1755924582143,1.80465717,115820.0,115810.0,0.60994274]
[1755924582742,1.80465717,115820.0,115810.0,0.10994274]
[1755924583844,1.4639094,115820.0,115810.0,0.10994274]
[1755924584347,1.80465717,115820.0,115810.0,0.10494274]
[1755924584541,1.80465717,115820.0,115810.0,0.13154274]
[1755924584743,1.80465717,115820.0,115810.0,0.08334274]
[1755924585145,1.80465717,115820.0,115810.0,0.13154274]
[1755924585751,1.4639094,115820.0,115810.0,0.16979274]
[1755924586054,1.80465717,115820.0,115810.0,0.16979274]
[1755924588851,1.4639094,115820.0,115810.0,0.16979274]
[1755924589056,1.80465717,115820.0,115810.0,0.16979274]
[1755924590055,1.80465717,115820.0,115810.0,0.20251274]
[1755924590556,1.4639094,115820.0,115810.0,0.20251274]
[1755924590757,1.80465717,115820.0,115810.0,0.20251274]
[1755924591456,1.80465717,115820.0,115810.0,0.13154274]
[1755924593454,1.4639094,115820.0,115810.0,0.13154274]
[1755924593654,1.80465717,115820.0,115810.0,0.13154274]
[1755924596359,1.87309416,115820.0,115810.0,0.13154274]
[1755924596550,1.87309416,115820.0,115810.0,0.0542]
[1755924598158,1.87309416,115820.0,115810.0,0.09142]
[1755924598860,1.4639094,115820.0,115810.0,0.12179]
[1755924599052,1.87309416,115820.0,115810.0,0.15654]
[1755924599253,1.87309416,115820.0,115810.0,0.61821476]
[1755924599448,1.4639094,115820.0,115810.0,0.69576681]
[1755924599658,1.87309416,115820.0,115810.0,0.28658205]
[1755924600154,1.87309416,115820.0,115810.0,0.78658205]
[1755924600361,1.4639094,115820.0,115810.0,0.78658205]
[1755924600561,1.87309416,115820.0,115810.0,0.78658205]
[1755924601161,1.4639094,115820.0,115810.0,0.78658205]
[1755924601461,1.87309416,115820.0,115810.0,0.78658205]
[1755924601863,1.87309416,115820.0,115810.0,0.8949624]
[1755924602061,1.87309416,115820.0,115810.0,0.81741035]
[1755924602361,1.87309416,115820.0,115810.0,0.70903]
[1755924602564,1.87309416,115820.0,115810.0,1.11821476]
[1755924602768,1.87309416,115820.0,115810.0,1.22659511]
[1755924603156,1.87309416,115820.0,115810.0,0.81741035]
[1755924603358,1.87309416,115820.0,115810.0,1.22659511]
[1755924603557,1.4639094,115820.0,115810.0,1.22659511]
[1755924603863,1.87309416,115820.0,115810.0,1.31293971]
[1755924604470,1.4371294,115820.0,115810.0,1.39932671]
[1755924604764,1.4624494,115820.0,115810.0,1.29094636]
[1755924605461,0.82921,115820.0,115810.0,1.54094636]
[1755924605663,0.00225,115820.0,115810.0,1.90174636]
[1755924606265,0.00225,115820.0,115810.0,1.98810102]
[1755924607856,0.00225,115820.0,115810.0,1.83335589]
[1755924608457,0.00225,115820.0,115810.0,1.4925616]
[1755924608663,0.00225,115820.0,115810.0,1.83335589]
[1755924609463,0.00225,115820.0,115810.0,1.94177864]
[1755924610068,0.0886296,115820.0,115810.0,1.94177864]
[1755924610269,0.0886296,115820.0,115810.0,1.83335589]
[1755924610969,0.0886296,115820.0,115810.0,1.47255589]
[1755924611373,0.0886296,115820.0,115810.0,1.1317616]
[1755924611669,0.0886296,115820.0,115810.0,1.47255589]
[1755924611872,0.0886296,115820.0,115810.0,1.1317616]
[1755924612066,0.0886296,115820.0,115810.0,1.47255589]
[1755924612470,0.0886296,115820.0,115810.0,1.1317616]
[1755924612670,0.0886296,115820.0,115810.0,1.47255589]
[1755924613074,0.0886296,115820.0,115810.0,1.38616889]
[1755924613276,0.0886296,115820.0,115810.0,1.49456273]
[1755924614079,0.4494296,115820.0,115810.0,1.49456273]
[1755924614778,0.4494296,115820.0,115810.0,1.58094973]
[1755924615277,0.0886296,115820.0,115810.0,1.58094973]
[1755924618380,0.1422296,115820.0,115810.0,1.58094973]
[1755924619183,0.0886296,115820.0,115810.0,1.58094973]
[1755924620682,0.0886296,115820.0,115810.0,1.68094973]
[1755924621180,0.1422296,115820.0,115810.0,1.68094973]
[1755924622984,0.1422296,115820.0,115810.0,1.57255589]
[1755924623585,0.1422296,115820.0,115810.0,1.6809365]
[1755924623985,0.6429396,115820.0,115810.0,0.90375521]
[1755924625691,0.6429396,115820.0,115810.0,0.7953746]
[1755924626495,0.6429396,115820.0,115810.0,1.2044267]
[1755924630499,0.6429396,115820.0,115810.0,1.35917183]
[1755924632393,0.6429396,115820.0,115810.0,0.95011973]
[1755924632601,0.6429396,115820.0,115810.0,1.35917183]
[1755924632796,0.0886296,115820.0,115810.0,1.44555883]
[1755924632992,0.0886296,115820.0,115810.0,1.54555883]
[1755924634392,1.23095,115830.0,115810.0,1.83811634]
[1755924634594,1.23095,115830.0,115820.0,0.30534]
[1755924634993,0.94858,115830.0,115820.0,0.30534]
[1755924635206,1.0589121,115830.0,115820.0,0.3916846]
[1755924635894,1.0899321,115830.0,115820.0,0.8916846]
[1755924636202,1.4507321,115830.0,115820.0,0.8916846]
[1755924636401,1.4507321,115830.0,115820.0,0.8946846]
[1755924640104,1.4267721,115830.0,115820.0,0.8946846]
[1755924640401,1.4507321,115830.0,115820.0,0.8946846]
[1755924641301,1.4507321,115830.0,115820.0,0.7946846]
[1755924642999,1.4507321,115830.0,115820.0,0.7084446]
[1755924643409,1.4507321,115830.0,115820.0,0.7403246]
[1755924647006,1.4507321,115830.0,115820.0,0.6099846]
[1755924647407,1.4507321,115830.0,115820.0,0.6355446]
[1755924648109,1.4507321,115830.0,115820.0,0.6731546]
[1755924648309,1.4507321,115830.0,115820.0,0.7050346]
[1755924649611,1.4507321,115830.0,115820.0,0.7403246]
[1755924649812,1.4507321,115830.0,115820.0,0.7946846]
[1755924650308,1.0899321,115830.0,115820.0,0.90321113]
[1755924650514,1.4507321,115830.0,115820.0,0.90321113]
[1755924650715,1.4507321,115830.0,115820.0,0.7946846]
[1755924651613,1.4527321,115830.0,115820.0,0.7946846]
[1755924652208,1.4527321,115830.0,115820.0,0.7916846]
[1755924652516,1.4527321,115830.0,115820.0,0.8926846]
[1755924652915,1.4527321,115830.0,115820.0,1.00125084]
[1755924656112,1.4287721,115830.0,115820.0,1.34206045]
[1755924656313,1.4527321,115830.0,115820.0,1.34206045]
[1755924656511,1.4527321,115830.0,115820.0,1.23349421]
[1755924656916,1.4527321,115830.0,115820.0,0.8926846]
[1755924658314,1.4527321,115830.0,115820.0,1.30168495]
[1755924658515,1.4527321,115830.0,115820.0,0.8926846]
[1755924658715,1.4527321,115830.0,115820.0,1.30168495]
[1755924660221,1.4527321,115830.0,115820.0,0.8926846]
[1755924660519,1.4527321,115830.0,115820.0,1.30168495]
[1755924668922,1.4527321,115830.0,115820.0,1.410222]
[1755924669324,1.4527321,115830.0,115820.0,1.30168495]
[1755924669625,1.4527321,115830.0,115820.0,1.41022262]
[1755924670723,1.4527321,115830.0,115820.0,1.00122227]
[1755924670925,1.4527321,115830.0,115820.0,1.41022262]
[1755924675235,1.4527321,115830.0,115820.0,1.30168495]
[1755924677831,1.4527321,115830.0,115820.0,1.26407495]
[1755924678130,1.4527321,115830.0,115820.0,1.29880495]
[1755924679027,1.4527321,115830.0,115820.0,0.8898046]
[1755924679334,1.4527321,115830.0,115820.0,1.29880495]
[1755924686129,1.4527321,115830.0,115820.0,1.4073712]
[1755924686324,1.3424,115830.0,115820.0,1.4937508]
[1755924686633,0.002,115830.0,115820.0,2.66258455]
[1755924686835,0.0863682,115840.0,115830.0,0.1465322]
[1755924686836,0.9029682,115840.0,115830.0,0.1465322]
[1755924687133,0.9029682,115840.0,115830.0,1.11903407]
[1755924687337,0.9029682,115840.0,115830.0,0.71003372]
[1755924687528,0.9555682,115840.0,115830.0,1.45537121]
[1755924688128,0.9555682,115840.0,115830.0,1.95537121]
[1755924688626,1.0572282,115840.0,115830.0,1.95537121]
[1755924688935,1.0863482,115840.0,115830.0,1.86899901]
[1755924689138,1.0883482,115840.0,115830.0,1.86899901]
[1755924689939,1.0883482,115840.0,115830.0,1.61899901]
[1755924691441,1.0883482,115840.0,115830.0,1.20999866]
[1755924691630,1.0883482,115840.0,115830.0,1.61899901]
[1755924692133,1.0883482,115840.0,115830.0,1.20999866]
[1755924692437,1.0883482,115840.0,115830.0,1.61899901]
[1755924696340,1.0883482,115840.0,115830.0,1.70537121]
[1755924701240,1.0883482,115840.0,115830.0,1.29637086]
[1755924701445,1.0883482,115840.0,115830.0,1.70537121]
[1755924703139,1.0883482,115840.0,115830.0,1.29637086]
[1755924703346,1.0883482,115840.0,115830.0,1.70537121]
[1755924703545,1.0883482,115840.0,115830.0,1.8136778]
[1755924707644,1.0883482,115840.0,115830.0,1.70537121]
[1755924708252,1.0883482,115840.0,115830.0,1.61899901]
[1755924709052,2.10814855,115840.0,115830.0,1.58426901]
[1755924709251,2.10814855,115840.0,115830.0,1.57075901]
[1755924709452,2.10814855,115840.0,115830.0,1.47075901]
[1755924709853,1.6991482,115840.0,115830.0,1.52344901]
[1755924710048,1.6991482,115840.0,115830.0,1.63181145]
[1755924710255,1.6991482,115840.0,115830.0,1.2228111]
[1755924710456,1.6991482,115840.0,115830.0,1.63181145]
[1755924714856,1.6981882,115840.0,115830.0,1.63181145]
[1755924715050,1.3373882,115840.0,115830.0,1.63181145]
[1755924716452,1.3373882,115840.0,115830.0,1.52344901]
[1755924719063,1.0873882,115840.0,115830.0,1.52344901]
[1755924719262,1.4481882,115840.0,115830.0,1.63198885]
[1755924720057,1.4481882,115840.0,115830.0,1.52344901]
[1755924722055,1.4481882,115840.0,115830.0,1.46803901]
[1755924722563,1.4481882,115840.0,115830.0,1.52167901]
[1755924722956,1.4481882,115840.0,115830.0,1.67642414]
[1755924726580,1.0873882,115840.0,115830.0,1.76279634]
[1755924726874,1.4481882,115840.0,115830.0,1.76279634]
[1755924727276,1.0873882,115840.0,115830.0,1.76279634]
[1755924727675,1.4481882,115840.0,115830.0,1.76279634]
[1755924729681,1.4481882,115840.0,115830.0,1.67642414]
[1755924730080,1.4481882,115840.0,115830.0,1.26742379]
[1755924730281,1.4481882,115840.0,115830.0,1.67642414]
[1755924731088,1.4481882,115840.0,115830.0,1.52167901]
[1755924734082,1.4481882,115840.0,115830.0,1.11267866]
[1755924734485,1.4481882,115840.0,115830.0,1.52167901]
[1755924735872,1.0873882,115840.0,115830.0,1.52167901]
[1755924736077,1.4481882,115840.0,115830.0,1.52167901]
[1755924736277,1.4481882,115840.0,115830.0,1.11267866]
[1755924736474,1.4481882,115840.0,115830.0,1.52167901]
[1755924736887,1.4481882,115840.0,115830.0,1.11267866]
[1755924737088,1.4481882,115840.0,115830.0,1.52167901]
[1755924739188,1.4481882,115840.0,115830.0,1.67642414]
[1755924740685,1.4481882,115840.0,115830.0,1.52167901]
[1755924741479,1.4481882,115840.0,115830.0,1.60805121]
[1755924741684,1.4481882,115840.0,115830.0,1.70805121]
[1755924742382,1.4481882,115840.0,115830.0,1.29905086]
[1755924742584,1.4481882,115840.0,115830.0,1.70805121]
[1755924742883,1.0873882,115840.0,115830.0,1.816653]
[1755924743282,0.2479982,115840.0,115830.0,1.816653]
[1755924743591,0.1231047,115840.0,115830.0,1.816653]
[1755924743791,0.0883647,115840.0,115830.0,1.816653]
[1755924743990,0.0883647,115840.0,115830.0,1.40765265]
[1755924744193,0.0883647,115840.0,115830.0,1.816653]
[1755924745299,0.002,115840.0,115830.0,1.816653]
[1755924746197,1.43244734,115860.0,115850.0,0.1638371]
[1755924746397,1.36938324,115860.0,115850.0,0.78909745]
[1755924746785,1.36938324,115860.0,115850.0,0.87541224]
[1755924746981,1.36938324,115860.0,115850.0,0.94564834]
[1755924747188,1.45573304,115860.0,115850.0,0.53664799]
[1755924747488,1.45673304,115860.0,115850.0,0.94564834]
[1755924747688,1.45673304,115860.0,115850.0,1.0540761]
[1755924747886,1.37038324,115860.0,115850.0,1.0540761]
[1755924748091,1.37038324,115860.0,115850.0,1.5540761]
[1755924748489,1.37138324,115860.0,115850.0,1.5540761]
[1755924749093,1.45773304,115860.0,115850.0,1.5540761]
[1755924749689,1.45673304,115860.0,115850.0,1.5540761]
[1755924752797,1.09593304,115860.0,115850.0,1.5540761]
[1755924755903,1.09593304,115860.0,115850.0,1.14507575]
[1755924756092,1.09593304,115860.0,115850.0,1.5540761]
[1755924756794,1.09593304,115860.0,115850.0,1.44564834]
[1755924756994,1.09593304,115860.0,115850.0,1.52300397]
[1755924758693,1.09593304,115860.0,115850.0,1.11400362]
[1755924758895,1.09593304,115860.0,115850.0,1.52300397]
[1755924764800,1.09593304,115860.0,115850.0,1.44564834]
[1755924767802,1.07264304,115860.0,115850.0,1.5540761]
[1755924768003,1.09586304,115860.0,115850.0,1.5540761]
[1755924768207,1.09586304,115860.0,115850.0,1.44564834]
[1755924768805,1.09586304,115860.0,115850.0,1.55398668]
[1755924770606,0.28154304,115860.0,115850.0,1.55398668]
[1755924771202,0.06678324,115860.0,115850.0,1.55398668]
[1755924772101,0.04941,115860.0,115850.0,1.55398668]
[1755924773106,0.001,115860.0,115850.0,1.55398668]
[1755924774010,0.001,115860.0,115850.0,1.44564834]
[1755924774212,0.04922,115870.0,115850.0,2.05644834]
[1755924774402,0.60658588,115880.0,115870.0,0.18631]
[1755924774711,0.26900588,115880.0,115870.0,0.72262445]
[1755924775101,0.26900588,115880.0,115870.0,0.80892434]
[1755924775502,0.27200588,115880.0,115870.0,0.90892434]
[1755924776205,0.27200588,115880.0,115870.0,1.40892434]
[1755924776807,0.27300588,115880.0,115870.0,1.40892434]
[1755924777211,0.19981588,115880.0,115870.0,1.08626259]
[1755924777411,0.01240878,115880.0,115870.0,1.38682487]
[1755924777612,0.01240878,115880.0,115870.0,1.54157]
[1755924778917,0.01240878,115880.0,115870.0,1.90237]
[1755924779419,0.004,115880.0,115870.0,2.31137035]
[1755924779615,1.19953,115900.0,115880.0,0.0863291]
[1755924779818,1.27258,115900.0,115890.0,0.70049322]
[1755924780019,1.27258,115900.0,115890.0,0.71991178]
[1755924780219,0.53422,115900.0,115890.0,0.80621167]
[1755924780520,0.54271763,115900.0,115890.0,0.80621167]
[1755924781117,0.62903363,115900.0,115890.0,0.80621167]
[1755924781419,0.63303363,115900.0,115890.0,0.80621167]
[1755924781619,0.52473763,115900.0,115890.0,0.89253507]
[1755924781817,0.11501763,115900.0,115890.0,0.99253507]
[1755924782018,0.01249763,115900.0,115890.0,1.85333507]
[1755924782219,0.01249763,115900.0,115890.0,1.7450722]
[1755924782721,0.01449763,115900.0,115890.0,1.7450722]
[1755924783323,0.01549763,115900.0,115890.0,1.8450722]
[1755924783823,0.007,115900.0,115890.0,1.8450722]
[1755924784412,0.007,115900.0,115890.0,1.95308511]
[1755924786720,0.007,115900.0,115890.0,1.54408476]
[1755924786926,0.007,115900.0,115890.0,1.95308511]
[1755924787524,0.007,115900.0,115890.0,1.54408476]
[1755924787724,0.05807,115900.0,115890.0,1.8450722]
[1755924788625,0.09097,115900.0,115890.0,1.8450722]
[1755924789727,0.09097,115900.0,115890.0,1.95308511]
[1755924790222,0.007,115900.0,115890.0,1.43607185]
[1755924790424,0.007,115900.0,115890.0,1.7587488]
[1755924790627,0.05807,115900.0,115890.0,1.7587488]
[1755924791126,0.09097,115900.0,115890.0,1.8450732]
[1755924791525,0.10952,115900.0,115890.0,1.8450732]
[1755924792125,0.09097,115900.0,115890.0,1.8450732]
[1755924792326,0.007,115900.0,115890.0,1.8450732]
[1755924792535,0.007,115900.0,115890.0,1.43607285]
[1755924792716,0.007,115900.0,115890.0,1.8450732]
[1755924793224,0.05807,115900.0,115890.0,1.8450732]
[1755924793427,0.2188667,115900.0,115890.0,1.75334845]
[1755924793626,0.6275367,115900.0,115890.0,2.1623488]
[1755924793931,0.54122,115900.0,115890.0,2.1635488]
[1755924794132,0.54122,115900.0,115890.0,2.2635488]
[1755924794323,0.54122,115900.0,115890.0,2.6243488]
[1755924794324,0.18042,115900.0,115890.0,2.6243488]
[1755924794523,0.18042,115900.0,115890.0,2.7106727]
[1755924794524,0.15453,115900.0,115890.0,2.7106727]
[1755924794732,0.13255,115900.0,115890.0,2.7106727]
[1755924796827,0.89524264,115900.0,115890.0,0.98894845]
[1755924797019,1.30424299,115900.0,115890.0,0.88894845]
[1755924797222,1.30424299,115900.0,115890.0,1.06418891]
[1755924797623,0.89524264,115900.0,115890.0,1.06418891]
[1755924797822,1.30424299,115900.0,115890.0,1.06418891]
[1755924798024,1.30504299,115900.0,115890.0,0.65518856]
[1755924798225,0.89604264,115900.0,115890.0,0.56029856]
[1755924799334,0.89604264,115900.0,115890.0,0.59398856]
[1755924799627,0.89604264,115900.0,115890.0,0.62191856]
[1755924799828,0.89524264,115900.0,115890.0,0.62191856]
[1755924800828,0.89524264,115900.0,115890.0,0.56029856]
[1755924801036,0.89524264,115900.0,115890.0,0.54165856]
[1755924801627,0.89524264,115900.0,115890.0,0.04165856]
[1755924802027,0.64524264,115900.0,115890.0,0.20264856]
[1755924802238,0.62326264,115900.0,115890.0,0.20264856]
[1755924802533,0.64524264,115900.0,115890.0,0.20264856]
[1755924804432,0.17614684,115900.0,115890.0,0.62947597]
[1755924804632,0.02470684,115900.0,115890.0,1.15366253]
[1755924804828,0.02470684,115900.0,115890.0,1.42659917]
[1755924804829,0.007,115900.0,115890.0,1.42659917]
[1755924805029,0.007,115900.0,115890.0,2.40165208]
[1755924805331,0.007,115900.0,115890.0,2.90165208]
[1755924805526,0.007,115900.0,115890.0,2.45309675]
[1755924805835,0.007,115900.0,115890.0,2.89363917]
[1755924806035,0.007,115900.0,115890.0,3.00184521]
[1755924806331,0.13255,115900.0,115890.0,2.10597355]
[1755924806534,0.12955,115900.0,115890.0,2.10597355]
[1755924806837,0.12955,115900.0,115890.0,2.44895597]
[1755924807031,0.12555,115900.0,115890.0,2.45095597]
[1755924808135,0.12555,115900.0,115890.0,2.53728037]
[1755924808332,0.12555,115900.0,115890.0,2.53528037]
[1755924808539,0.12555,115900.0,115890.0,2.89808037]
[1755924808733,0.08397,115900.0,115890.0,2.89808037]
[1755924809432,0.08397,115900.0,115890.0,2.53728037]
[1755924809936,0.2133369,115900.0,115890.0,1.93774201]
[1755924810143,0.2133369,115900.0,115890.0,2.27828443]
[1755924810437,0.2589769,115900.0,115890.0,0.97026201]
[1755924810632,0.2589769,115900.0,115890.0,0.87026201]
[1755924812135,0.2341169,115900.0,115890.0,0.87026201]
[1755924812337,0.2133369,115900.0,115890.0,0.87026201]
[1755924812541,0.2133369,115900.0,115890.0,1.21080443]
[1755924812843,0.08397,115900.0,115890.0,1.29712883]
[1755924813144,0.08397,115900.0,115890.0,1.75792883]
[1755924813333,0.14128918,115910.0,115900.0,0.18858]
[1755924813529,0.14128918,115910.0,115900.0,0.60644568]
[1755924813935,0.05497538,115910.0,115900.0,0.69273067]
[1755924814441,0.08516538,115910.0,115900.0,0.69273067]
[1755924814641,0.08516538,115910.0,115900.0,0.69373067]
[1755924814837,0.08516538,115910.0,115900.0,0.69473067]
[1755924815240,0.10493538,115910.0,115900.0,1.19473067]
[1755924815542,0.23530488,115910.0,115900.0,0.85418825]
[1755924816542,0.14899538,115910.0,115900.0,0.85418825]
[1755924816742,0.14899538,115910.0,115900.0,0.94050345]
[1755924817237,0.17385538,115910.0,115900.0,0.94050345]
[1755924817643,0.00853538,115910.0,115900.0,0.94050345]
[1755924817942,0.4935445,115920.0,115900.0,2.53356261]
[1755924818148,0.4935445,115920.0,115910.0,0.2748879]
[1755924818348,0.07663,115920.0,115910.0,0.37114647]
[1755924818546,0.07663,115920.0,115910.0,0.8628258]
[1755924818747,0.07663,115920.0,115910.0,0.94910335]
[1755924819043,0.1629305,115920.0,115910.0,0.58830335]
[1755924819243,0.2059805,115920.0,115910.0,0.58830335]
[1755924819641,0.17124172,115920.0,115910.0,1.08830335]
[1755924820138,0.21429172,115920.0,115910.0,1.08830335]
[1755924820340,0.23507172,115920.0,115910.0,1.08830335]
[1755924821447,0.23507172,115920.0,115910.0,1.15829586]
[1755924822050,0.23507172,115920.0,115910.0,1.51909586]
[1755924822444,0.14877122,115920.0,115910.0,1.51909586]
[1755924822755,0.14877122,115920.0,115910.0,1.85963828]
[1755924822943,0.12799122,115920.0,115910.0,1.85963828]
[1755924823144,0.21428662,115920.0,115910.0,1.93691824]
[1755924823451,0.21428662,115920.0,115910.0,1.8287122]
[1755924824739,0.21428662,115920.0,115910.0,1.4679122]
[1755924824945,0.23506662,115920.0,115910.0,1.12736978]
[1755924825652,0.19100662,115920.0,115910.0,1.12736978]
[1755924825952,0.19100662,115920.0,115910.0,1.8287122]
[1755924826449,0.21428662,115920.0,115910.0,1.48816978]
[1755924827053,0.23506662,115920.0,115910.0,1.48816978]
[1755924827752,0.23506662,115920.0,115910.0,1.51909586]
[1755924828249,0.21428662,115920.0,115910.0,1.51909586]
[1755924829455,0.10471122,115920.0,115910.0,1.51909586]
[1755924829950,0.00831122,115920.0,115910.0,1.85963828]
[1755924830154,1.04346453,115930.0,115910.0,1.75143224]
[1755924830453,1.06424453,115930.0,115920.0,0.29673389]
[1755924831245,1.06424453,115930.0,115920.0,0.38299655]
[1755924831953,1.42504453,115930.0,115920.0,0.38299655]
[1755924832256,1.4353268,115930.0,115920.0,0.3521215]
[1755924832556,1.0755268,115930.0,115920.0,0.27484266]
[1755924834255,1.0755268,115930.0,115920.0,0.35215936]
[1755924834556,1.0755268,115930.0,115920.0,0.27484266]
[1755924836459,1.4363268,115930.0,115920.0,0.27484266]